fUST/lending_fUST_20241106
["ID","MTS","AMOUNT","RATE_DAILY","PERIOD"]
[341374359,1730855438434,-500.0,0.00038356,14]
[341374360,1730855438445,-500.0,0.00038356,14]
[341374361,1730855438454,-500.0,0.00038356,14]
[341374362,1730855438464,-500.0,0.00038356,14]
[341374363,1730855438474,-500.0,0.00038356,14]
[341374364,1730855438484,-500.0,0.00038356,14]
[341374365,1730855438494,-500.0,0.00038356,14]
[341374366,1730855438504,-1528.87,0.00038356,14]
[341374367,1730855438514,-500.0,0.00038356,14]
[341374368,1730855438524,-798.67,0.00038356,14]
[341374369,1730855438534,-500.0,0.00038356,7]
[341374370,1730855438546,-500.0,0.00038356,14]
[341374371,1730855438556,-500.0,0.00038356,14]
[341374373,1730855438566,-500.0,0.00038356,10]
[341374375,1730855438576,-500.0,0.00038356,14]
[341374377,1730855438587,-500.0,0.00038356,14]
[341374379,1730855438597,-500.0,0.00038356,14]
[341374381,1730855438608,-500.0,0.00038356,14]
[341374382,1730855438617,-250.0,0.00038356,14]
[341374383,1730855438627,-666.49,0.00038356,14]
[341374384,1730855438637,-500.0,0.00038356,14]
[341374385,1730855438728,-151.0,0.00038356,14]
[341374386,1730855438737,-151.0,0.00038356,14]
[341374387,1730855438747,-151.0,0.00038356,14]
[341374388,1730855438756,-151.0,0.00038356,14]
[341374389,1730855438766,-151.0,0.00038356,14]
[341374390,1730855438775,-151.0,0.00038356,14]
[341374391,1730855438786,-500.0,0.00038356,14]
[341374392,1730855438796,-500.0,0.00038356,14]
[341374393,1730855438805,-151.0,0.00038356,14]
[341374394,1730855438821,-151.0,0.00038356,14]
[341374395,1730855438835,-151.0,0.00038356,14]
[341374396,1730855438844,-151.0,0.00038356,14]
[341374397,1730855438854,-151.0,0.00038356,14]
[341374398,1730855438863,-2996.52,0.00038356,14]
[341374399,1730855438873,-151.0,0.00038356,14]
[341374400,1730855438882,-151.0,0.00038356,14]
[341374401,1730855438891,-151.0,0.00038356,14]
[341374402,1730855438900,-151.0,0.00038356,14]
[341374403,1730855438910,-151.0,0.00038356,14]
[341374404,1730855438921,-151.0,0.00038356,14]
[341374405,1730855438931,-151.000001,0.00038356,14]
[341374406,1730855438940,-500.0,0.00038356,14]
[341374407,1730855438949,-500.0,0.00038356,14]
[341374408,1730855438960,-500.0,0.00038356,14]
[341374409,1730855438970,-500.0,0.00038356,14]
[341374410,1730855438980,-782.44,0.00038356,14]
[341374411,1730855438990,-500.0,0.00038356,14]
[341374412,1730855439001,-500.0,0.00038356,14]
[341374413,1730855439011,-500.0,0.00038356,14]
[341374414,1730855439020,-500.0,0.00038356,14]
[341374415,1730855439031,-500.0,0.00038356,14]
[341374416,1730855439042,-151.0,0.00038356,14]
[341374417,1730855439053,-151.0,0.00038356,14]
[341374418,1730855439063,-151.0,0.00038356,14]
[341374419,1730855439073,-227.112704,0.00038356,14]
[341374420,1730855439084,-500.0,0.00038356,14]
[341374421,1730855439093,-500.0,0.00038356,14]
[341374422,1730855439103,-544.26047387,0.00038356,14]
[341374423,1730855439112,-500.0,0.00038356,14]
[341374424,1730855439122,-500.0,0.00038356,14]
[341374425,1730855439133,-501.96729696,0.00038356,14]
[341374426,1730855439143,-500.0,0.00038356,2]
[341374427,1730855439155,-500.0,0.00038356,14]
[341374428,1730855439165,-500.0,0.00038356,14]
[341374429,1730855439176,-500.0,0.00038356,14]
[341374430,1730855439185,-500.07230651,0.00038373,5]
[341374431,1730855439196,-501.89134095,0.00038373,5]
[341374432,1730855439205,-500.93109022,0.00038373,5]
[341374433,1730855439214,-500.0,0.00038373,5]
[341374434,1730855439224,-500.0,0.00038373,5]
[341374435,1730855439234,-187.32735523,0.00038373,2]
[341374436,1730855439249,-500.0,0.00038373,5]
[341374437,1730855439262,-500.0,0.00038373,5]
[341374438,1730855439272,-500.0,0.00038373,5]
[341374439,1730855439282,-500.0,0.00038373,5]
[341374440,1730855439292,-623.75486662,0.00038373,5]
[341374441,1730855439302,-500.70409468,0.00038373,5]
[341374442,1730855439312,-500.0,0.00038373,2]
[341374443,1730855439322,-500.69932809,0.00038373,5]
[341374444,1730855439331,-500.0,0.00038373,2]
[341374445,1730855439343,-500.0,0.00038373,5]
[341374446,1730855439353,-788.47293794,0.00038572,2]
[341374447,1730855439362,-500.0,0.0003863,14]
[341374448,1730855439372,-500.0,0.0003863,14]
[341374449,1730855439382,-500.0,0.0003863,14]
[341374450,1730855439391,-500.0,0.0003863,14]
[341374451,1730855439400,-500.0,0.0003863,14]
[341374452,1730855439410,-500.0,0.0003863,14]
[341374453,1730855439420,-500.0,0.0003863,14]
[341374454,1730855439429,-500.0,0.0003863,14]
[341374455,1730855439439,-500.0,0.0003863,14]
[341374456,1730855439449,-500.0,0.0003863,14]
[341374457,1730855439458,-527.85695948,0.0003863,14]
[341374458,1730855439468,-414.44494095,0.0003863,14]
[341374459,1730855439477,-500.0,0.0003863,14]
[341374460,1730855439487,-500.0,0.0003863,14]
[341374461,1730855439497,-500.0,0.0003863,14]
[341374462,1730855439507,-500.0,0.0003863,14]
[341374463,1730855439517,-194.34487764,0.0003863,14]
[341374464,1730855439527,-500.0,0.0003863,14]
[341374465,1730855439537,-500.0,0.0003863,14]
[341374466,1730855439548,-500.0,0.0003863,14]
[341374467,1730855439558,-569.36,0.0003863,14]
[341374468,1730855439568,-500.0,0.0003863,14]
[341374469,1730855439579,-500.0,0.0003863,14]
[341374470,1730855439591,-507.78633003,0.0003863,14]
[341374471,1730855439602,-500.0,0.0003863,14]
[341374472,1730855439612,-508.01088676,0.0003863,14]
[341374473,1730855439621,-500.0,0.0003863,14]
[341374474,1730855439631,-500.0,0.0003863,14]
[341374476,1730855439641,-500.0,0.0003863,14]
[341374478,1730855439650,-500.0,0.0003863,14]
[341374479,1730855439660,-500.0,0.0003863,14]
[341374480,1730855439669,-500.0,0.0003863,14]
[341374481,1730855439680,-500.0,0.0003863,14]
[341374482,1730855439689,-500.0,0.0003863,14]
[341374484,1730855439699,-151.0,0.0003863,14]
[341374486,1730855439708,-151.0,0.0003863,14]
[341374487,1730855439718,-500.0,0.0003863,120]
[341374488,1730855439727,-500.0,0.0003863,14]
[341374489,1730855439737,-500.0,0.0003863,14]
[341374490,1730855439746,-502.65482888,0.0003863,14]
[341374491,1730855439755,-500.0,0.0003863,14]
[341374492,1730855439765,-502.92740187,0.0003863,14]
[341374493,1730855439775,-500.0,0.0003863,14]
[341374494,1730855439784,-500.0,0.0003863,14]
[341374495,1730855439793,-500.0,0.0003863,14]
[341374496,1730855439802,-519.28178784,0.0003863,14]
[341374497,1730855439813,-500.0,0.0003863,14]
[341374505,1730855439822,-500.0,0.0003863,14]
[341374506,1730855439885,-503.52573992,0.0003863,14]
[341374507,1730855439893,-500.0,0.0003863,14]
[341374508,1730855439903,-500.0,0.0003863,14]
[341374509,1730855439912,-1002.48,0.0003863,14]
[341374510,1730855439922,-500.0,0.0003863,14]
[341374511,1730855439932,-500.0,0.0003863,14]
[341374512,1730855439941,-500.0,0.0003863,14]
[341374513,1730855439950,-500.0,0.0003863,14]
[341374514,1730855439959,-500.0,0.0003863,14]
[341374515,1730855439968,-500.0,0.0003863,14]
[341374516,1730855439977,-500.0,0.0003863,14]
[341374517,1730855439986,-500.0,0.0003863,14]
[341374519,1730855439995,-500.0,0.0003863,14]
[341374521,1730855440004,-500.0,0.0003863,14]
[341374522,1730855440013,-500.0,0.0003863,14]
[341374523,1730855440022,-500.0,0.0003863,14]
[341374524,1730855440031,-500.0,0.0003863,14]
[341374525,1730855440041,-500.0,0.0003863,14]
[341374526,1730855440050,-180.209695,0.0003863,14]
[341374528,1730855440060,-545.15062443,0.0003863,14]
[341374530,1730855440070,-515.185426,0.0003863,14]
[341374532,1730855440079,-504.43108934,0.0003863,14]
[341374534,1730855440091,-500.0,0.0003863,14]
[341374536,1730855440100,-500.0,0.0003863,14]
[341374538,1730855440109,-500.0,0.0003863,14]
[341374540,1730855440118,-237.5872132,0.0003863,14]
[341374542,1730855440127,-516.49236194,0.0003863,14]
[341374544,1730855440136,-500.0,0.0003863,14]
[341374546,1730855440146,-500.0,0.0003863,14]
[341374549,1730855440166,-500.0,0.0003863,14]
[341374551,1730855440175,-500.0,0.0003863,14]
[341374553,1730855440186,-520.2676144,0.0003863,14]
[341374555,1730855440196,-608.69904442,0.0003863,14]
[341374557,1730855440206,-500.0,0.0003863,14]
[341374559,1730855440215,-502.09937194,0.0003863,14]
[341374561,1730855440226,-500.0,0.0003863,14]
[341374563,1730855440237,-500.0,0.0003863,14]
[341374565,1730855440248,-500.0,0.0003863,14]
[341374568,1730855440258,-500.0,0.0003863,14]
[341374570,1730855440268,-500.0,0.0003863,14]
[341374572,1730855440279,-232.60299236,0.0003863,14]
[341374574,1730855440288,-530.95037799,0.0003863,14]
[341374576,1730855440298,-500.0,0.0003863,14]
[341374578,1730855440308,-500.0,0.0003863,14]
[341374580,1730855440319,-500.0,0.0003863,14]
[341374582,1730855440329,-500.0,0.0003863,14]
[341374584,1730855440346,-500.0,0.0003863,14]
[341374586,1730855440356,-520.3751042,0.0003863,14]
[341374588,1730855440366,-500.0,0.0003863,14]
[341374590,1730855440376,-500.0,0.0003863,14]
[341374592,1730855440386,-500.0,0.0003863,14]
[341374594,1730855440396,-509.91612702,0.0003863,14]
[341374596,1730855440406,-516.67308479,0.0003863,14]
[341374598,1730855440416,-500.0,0.0003863,14]
[341374600,1730855440425,-500.0,0.0003863,14]
[341374602,1730855440434,-500.0,0.0003863,14]
[341374604,1730855440444,-502.01839354,0.0003863,14]
[341374606,1730855440454,-500.0,0.0003863,14]
[341374608,1730855440463,-500.0,0.0003863,14]
[341374610,1730855440473,-500.0,0.0003863,14]
[341374612,1730855440483,-1000.0,0.0003863,116]
[341374614,1730855440492,-500.0,0.0003863,14]
[341374616,1730855440502,-511.95879681,0.0003863,14]
[341374618,1730855440511,-511.48311671,0.0003863,14]
[341374620,1730855440522,-509.20767935,0.0003863,14]
[341374622,1730855440532,-500.0,0.0003863,14]
[341374624,1730855440541,-500.0,0.0003863,14]
[341374626,1730855440550,-500.0,0.0003863,14]
[341374628,1730855440560,-500.0,0.0003863,14]
[341374630,1730855440570,-500.0,0.0003863,14]
[341374632,1730855440580,-500.0,0.0003863,14]
[341374634,1730855440594,-500.0,0.0003863,14]
[341374636,1730855440604,-385.96,0.0003863,14]
[341374638,1730855440613,-500.0,0.0003863,14]
[341374640,1730855440622,-500.0,0.0003863,14]
[341374642,1730855440633,-500.0,0.0003863,14]
[341374644,1730855440642,-230.98713841,0.0003863,7]
[341374646,1730855440651,-1517.38,0.0003863,14]
[341374648,1730855440661,-500.0,0.0003863,14]
[341374650,1730855440671,-618.03419578,0.0003863,14]
[341374652,1730855440680,-500.0,0.0003863,14]
[341374654,1730855440689,-565.08,0.0003863,14]
[341374656,1730855440698,-500.0,0.0003863,14]
[341374658,1730855440707,-500.0,0.0003863,14]
[341374660,1730855440716,-505.88502332,0.0003863,14]
[341374662,1730855440726,-311.1607662,0.0003863,14]
[341374663,1730855440735,-500.0,0.0003863,14]
[341374665,1730855440744,-500.0,0.0003863,14]
[341374667,1730855440754,-500.0,0.0003863,14]
[341374669,1730855440764,-500.0,0.0003863,14]
[341374670,1730855440774,-500.0,0.0003863,14]
[341374671,1730855440784,-500.0,0.0003863,14]
[341374672,1730855440793,-500.0,0.0003863,14]
[341374673,1730855440802,-500.0,0.0003863,14]
[341374674,1730855440811,-508.43407498,0.0003863,14]
[341374675,1730855440821,-500.0,0.0003863,14]
[341374676,1730855440830,-500.0,0.0003863,14]
[341374677,1730855440842,-166.557168,0.0003863,14]
[341374678,1730855440851,-166.557168,0.0003863,14]
[341374679,1730855440860,-166.557168,0.0003863,14]
[341374680,1730855440931,-166.557168,0.0003863,14]
[341374681,1730855440944,-151.0,0.0003863,14]
[341374682,1730855440954,-151.0,0.0003863,14]
[341374683,1730855440963,-151.0,0.0003863,14]
[341374684,1730855440973,-151.0,0.0003863,14]
[341374685,1730855440981,-166.557168,0.0003863,14]
[341374686,1730855440990,-869.85,0.0003863,14]
[341374687,1730855441000,-166.557168,0.0003863,14]
[341374688,1730855441009,-166.557168,0.0003863,14]
[341374689,1730855441018,-166.557176,0.0003863,14]
[341374690,1730855441027,-1341.45,0.0003863,14]
[341374691,1730855441036,-500.0,0.0003863,14]
[341374692,1730855441045,-514.8992849,0.0003863,14]
[341374693,1730855441055,-2643.88,0.0003863,14]
[341374694,1730855441065,-507.0478876,0.0003863,14]
[341374695,1730855441073,-500.0,0.0003863,14]
[341374696,1730855441083,-151.0,0.0003863,14]
[341374697,1730855441094,-151.0,0.0003863,14]
[341374698,1730855441103,-151.0,0.0003863,14]
[341374699,1730855441112,-500.0,0.0003863,14]
[341374700,1730855441122,-151.0,0.0003863,14]
[341374701,1730855441131,-500.0,0.0003863,14]
[341374702,1730855441140,-500.0,0.0003863,14]
[341374703,1730855441149,-500.0,0.0003863,7]
[341374704,1730855441158,-500.0,0.0003863,14]
[341374705,1730855441167,-506.15754707,0.0003863,14]
[341374706,1730855441176,-500.0,0.0003863,14]
[341374707,1730855441185,-500.0,0.0003863,14]
[341374708,1730855441194,-500.0,0.0003863,14]
[341374709,1730855441203,-500.0,0.0003863,14]
[341374710,1730855441212,-500.0,0.0003863,14]
[341374711,1730855441222,-3154.12,0.0003863,14]
[341374712,1730855441231,-500.0,0.0003863,14]
[341374713,1730855441242,-644.89,0.0003863,14]
[341374714,1730855441251,-631.58,0.0003863,14]
[341374715,1730855441261,-500.0,0.0003863,14]
[341374716,1730855441270,-500.0,0.0003863,14]
[341374717,1730855441280,-500.0,0.0003863,14]
[341374718,1730855441290,-500.0,0.0003863,14]
[341374719,1730855441299,-500.0,0.0003863,14]
[341374720,1730855441309,-1457.07,0.0003863,14]
[341374721,1730855441321,-517.37416284,0.0003863,14]
[341374722,1730855441331,-500.0,0.0003863,14]
[341374723,1730855441342,-525.05,0.0003863,14]
[341374724,1730855441351,-500.0,0.0003863,14]
[341374725,1730855441360,-6763.22,0.0003863,14]
[341374726,1730855441369,-500.0,0.0003863,14]
[341374727,1730855441378,-500.0,0.0003863,14]
[341374728,1730855441387,-500.0,0.0003863,14]
[341374729,1730855441396,-891.39,0.0003863,14]
[341374730,1730855441407,-500.0,0.0003863,14]
[341374731,1730855441417,-151.0,0.0003863,14]
[341374732,1730855441428,-151.0,0.0003863,14]
[341374733,1730855441437,-151.0,0.0003863,14]
[341374734,1730855441446,-260.435882,0.0003863,14]
[341374735,1730855441455,-151.0,0.0003863,14]
[341374736,1730855441465,-500.0,0.0003863,14]
[341374737,1730855441474,-151.0,0.0003863,14]
[341374738,1730855441484,-500.0,0.0003863,14]
[341374739,1730855441494,-627.76,0.0003863,14]
[341374740,1730855441504,-505.74164732,0.0003863,14]
[341374741,1730855441516,-151.0,0.0003863,14]
[341374742,1730855441526,-500.0,0.0003863,14]
[341374743,1730855441535,-500.0,0.0003863,14]
[341374744,1730855441545,-500.0,0.0003863,14]
[341374745,1730855441554,-151.0,0.0003863,14]
[341374746,1730855441564,-219.191212,0.0003863,14]
[341374747,1730855441573,-500.0,0.0003863,14]
[341374748,1730855441582,-500.0,0.0003863,14]
[341374749,1730855441593,-837.3,0.0003863,14]
[341374750,1730855441602,-500.0,0.0003863,14]
[341374751,1730855441611,-506.26049178,0.0003863,14]
[341374752,1730855441620,-500.0,0.0003863,14]
[341374753,1730855441630,-4427.04,0.0003863,14]
[341374754,1730855441640,-500.0,0.0003863,14]
[341374755,1730855441650,-500.0,0.0003863,14]
[341374756,1730855441660,-500.0,0.0003863,14]
[341374757,1730855441669,-500.0,0.0003863,14]
[341374758,1730855441678,-500.0,0.0003863,14]
[341374759,1730855441688,-218.48,0.0003863,14]
[341374760,1730855441697,-618.68385013,0.0003863,14]
[341374761,1730855441707,-151.0,0.0003863,14]
[341374762,1730855441716,-151.0,0.0003863,14]
[341374763,1730855441725,-151.0,0.0003863,14]
[341374764,1730855441734,-500.0,0.0003863,14]
[341374765,1730855441743,-151.0,0.0003863,14]
[341374766,1730855441753,-500.0,0.0003863,14]
[341374767,1730855441762,-500.0,0.0003863,14]
[341374768,1730855441771,-500.0,0.0003863,14]
[341374769,1730855441780,-151.0,0.0003863,14]
[341374770,1730855441790,-151.0,0.0003863,14]
[341374771,1730855441799,-500.0,0.0003863,14]
[341374772,1730855441808,-171.731054,0.0003863,14]
[341374773,1730855441864,-1333.5,0.0003863,14]
[341374774,1730855441873,-500.0,0.0003863,14]
[341374775,1730855441882,-500.0,0.0003863,14]
[341374776,1730855441892,-500.0,0.0003863,14]
[341374777,1730855441901,-500.0,0.0003863,14]
[341374778,1730855441910,-500.0,0.0003863,14]
[341374779,1730855441920,-500.0,0.0003863,14]
[341374780,1730855441928,-509.39548992,0.0003863,14]
[341374781,1730855441937,-9130.5,0.0003863,14]
[341374782,1730855441946,-500.0,0.0003863,14]
[341374783,1730855441955,-500.0,0.0003863,14]
[341374784,1730855441964,-508.98833859,0.0003863,14]
[341374785,1730855441973,-500.0,0.0003863,14]
[341374786,1730855441981,-644.63885971,0.0003863,14]
[341374787,1730855441990,-500.0,0.0003863,14]
[341374788,1730855441999,-500.0,0.0003863,14]
[341374789,1730855442009,-509.22250535,0.0003863,14]
[341374790,1730855442018,-151.0,0.0003863,14]
[341374791,1730855442027,-500.0,0.0003863,14]
[341374792,1730855442036,-151.0,0.0003863,14]
[341374793,1730855442045,-151.0,0.0003863,14]
[341374794,1730855442054,-510.22539395,0.0003863,14]
[341374795,1730855442063,-1651.81,0.0003863,14]
[341374796,1730855442072,-151.0,0.0003863,14]
[341374797,1730855442082,-500.0,0.0003863,14]
[341374798,1730855442094,-500.0,0.0003863,14]
[341374799,1730855442103,-500.0,0.0003863,14]
[341374800,1730855442112,-500.0,0.0003863,14]
[341374801,1730855442121,-500.0,0.0003863,14]
[341374802,1730855442130,-2905.4,0.0003863,14]
[341374803,1730855442139,-500.0,0.0003863,14]
[341374804,1730855442149,-500.0,0.0003863,14]
[341374805,1730855442159,-500.0,0.0003863,14]
[341374806,1730855442168,-500.0,0.0003863,14]
[341374807,1730855442177,-474.90294503,0.0003863,14]
[341374808,1730855442186,-500.0,0.0003863,14]
[341374809,1730855442195,-527.57042257,0.0003863,14]
[341374810,1730855442204,-500.0,0.0003863,14]
[341374811,1730855442214,-1528.87,0.0003863,14]
[341374812,1730855442223,-502.83851007,0.0003863,14]
[341374813,1730855442232,-798.67,0.0003863,14]
[341374814,1730855442245,-500.0,0.0003863,7]
[341374815,1730855442254,-500.0,0.0003863,14]
[341374816,1730855442263,-500.0,0.0003863,14]
[341374817,1730855442286,-500.0,0.0003863,14]
[341374818,1730855442301,-500.0,0.0003863,14]
[341374819,1730855442322,-500.0,0.0003863,14]
[341374820,1730855442343,-666.49,0.0003863,14]
[341374821,1730855442363,-250.0,0.0003863,14]
[341374822,1730855442380,-151.0,0.0003863,14]
[341374823,1730855442397,-151.0,0.0003863,14]
[341374824,1730855442414,-500.0,0.0003863,14]
[341374825,1730855442430,-500.0,0.0003863,14]
[341374826,1730855442448,-151.0,0.0003863,14]
[341374827,1730855442466,-151.0,0.0003863,14]
[341374828,1730855442488,-2996.52,0.0003863,14]
[341374829,1730855442502,-243.417343,0.0003863,14]
[341374830,1730855442517,-488.72863006,0.0003863,14]
[341374831,1730855442533,-500.0,0.0003863,14]
[341374832,1730855442550,-507.37052606,0.0003863,14]
[341374833,1730855442565,-782.44,0.0003863,14]
[341374834,1730855442578,-497.27298874,0.0003863,14]
[341374835,1730855442593,-500.0,0.0003863,14]
[341374836,1730855442607,-500.0,0.0003863,14]
[341374837,1730855442621,-515.35950812,0.0003863,14]
[341374838,1730855442635,-500.0,0.0003863,14]
[341374839,1730855442648,-500.0,0.0003863,14]
[341374840,1730855442662,-500.0,0.0003863,14]
[341374841,1730855442676,-500.0,0.0003863,2]
[341374842,1730855442689,-500.0,0.0003863,14]
[341374843,1730855442703,-198.0,0.00038663,14]
[341374844,1730855442717,-500.0,0.00038673,5]
[341374845,1730855442732,-500.21729308,0.00038673,5]
[341374846,1730855442745,-500.0,0.00038673,5]
[341374847,1730855442759,-500.0,0.00038673,2]
[341374848,1730855442772,-511.39462101,0.00038673,5]
[341374849,1730855442786,-500.0,0.00038673,5]
[341374850,1730855442800,-500.25617215,0.00038673,5]
[341374851,1730855442815,-162.37798138,0.00038673,5]
[341374852,1730855442829,-500.0,0.00038673,5]
[341374853,1730855442845,-500.0,0.00038673,5]
[341374854,1730855442859,-2176.85397993,0.00038686,2]
[341374855,1730855442873,-150.0,0.000387,120]
[341374856,1730855442889,-500.0,0.000387,57]
[341374857,1730855442901,-150.01,0.00038785,2]
[341374858,1730855442910,-2498.75120279,0.00038785,2]
[341374859,1730855443019,-1282.19828309,0.00038786,2]
[341374860,1730855443029,-39077.16826801,0.00038786,2]
[341374861,1730855443038,-501.0,0.00038815,45]
[341374862,1730855443047,-170.75,0.00038903,2]
[341374863,1730855443056,-170.75,0.00038903,2]
[341374864,1730855443065,-170.75,0.00038903,2]
[341374865,1730855443075,-170.75,0.00038903,2]
[341374866,1730855443086,-170.75,0.00038903,2]
[341374867,1730855443097,-170.75,0.00038903,2]
[341374868,1730855443106,-170.75,0.00038903,2]
[341374869,1730855443116,-170.75,0.00038903,2]
[341374870,1730855443126,-170.75,0.00038903,2]
[341374871,1730855443136,-170.75,0.00038903,2]
[341374872,1730855443145,-500.0,0.00038904,14]
[341374873,1730855443155,-500.0,0.00038904,14]
[341374874,1730855443165,-500.0,0.00038904,14]
[341374875,1730855443174,-500.0,0.00038904,14]
[341374876,1730855443183,-514.89109709,0.00038904,14]
[341374877,1730855443193,-511.94939734,0.00038904,14]
[341374878,1730855443202,-500.0,0.00038904,14]
[341374879,1730855443211,-507.53454466,0.00038904,14]
[341374880,1730855443221,-506.55889492,0.00038904,14]
[341374881,1730855443230,-241.69534257,0.00038904,14]
[341374882,1730855443241,-500.0,0.00038904,14]
[341374883,1730855443251,-500.0,0.00038904,14]
[341374884,1730855443261,-500.0,0.00038904,14]
[341374886,1730855443270,-569.36,0.00038904,14]
[341374887,1730855443280,-500.0,0.00038904,14]
[341374888,1730855443290,-502.1795883,0.00038904,14]
[341374889,1730855443300,-609.21533408,0.00038904,14]
[341374890,1730855443309,-500.0,0.00038904,14]
[341374891,1730855443320,-500.0,0.00038904,14]
[341374892,1730855443330,-604.34761335,0.00038904,14]
[341374893,1730855443343,-500.0,0.00038904,14]
[341374894,1730855443352,-500.0,0.00038904,120]
[341374895,1730855443361,-500.0,0.00038904,14]
[341374896,1730855443370,-500.0,0.00038904,14]
[341374897,1730855443379,-500.0,0.00038904,14]
[341374898,1730855443388,-561.99587361,0.00038904,14]
[341374900,1730855443398,-500.0,0.00038904,14]
[341374902,1730855443408,-500.0,0.00038904,14]
[341374904,1730855443416,-500.0,0.00038904,14]
[341374905,1730855443426,-500.0,0.00038904,14]
[341374907,1730855443435,-500.0,0.00038904,14]
[341374909,1730855443444,-500.0,0.00038904,14]
[341374911,1730855443454,-1002.48,0.00038904,14]
[341374913,1730855443463,-505.70423791,0.00038904,14]
[341374915,1730855443472,-236.79055648,0.00038904,14]
[341374917,1730855443481,-500.0,0.00038904,14]
[341374919,1730855443491,-500.0,0.00038904,14]
[341374921,1730855443501,-500.0,0.00038904,14]
[341374923,1730855443511,-231.43232443,0.00038904,14]
[341374925,1730855443520,-500.0,0.00038904,14]
[341374927,1730855443529,-500.0,0.00038904,14]
[341374929,1730855443539,-500.0,0.00038904,14]
[341374931,1730855443548,-500.0,0.00038904,14]
[341374933,1730855443557,-500.0,0.00038904,14]
[341374935,1730855443566,-500.0,0.00038904,14]
[341374937,1730855443575,-500.0,0.00038904,14]
[341374939,1730855443587,-500.0,0.00038904,14]
[341374940,1730855443597,-500.0,0.00038904,14]
[341374941,1730855443606,-500.0,0.00038904,14]
[341374942,1730855443615,-500.0,0.00038904,14]
[341374943,1730855443624,-500.0,0.00038904,14]
[341374944,1730855443633,-500.0,0.00038904,14]
[341374946,1730855443641,-370.60768278,0.00038904,14]
[341374948,1730855443651,-500.0,0.00038904,14]
[341374950,1730855443660,-500.0,0.00038904,14]
[341374952,1730855443670,-500.0,0.00038904,14]
[341374954,1730855443679,-500.0,0.00038904,14]
[341374956,1730855443688,-500.0,0.00038904,14]
[341374958,1730855443698,-500.0,0.00038904,14]
[341374960,1730855443708,-500.0,0.00038904,14]
[341374963,1730855443718,-500.0,0.00038904,14]
[341374965,1730855443728,-500.0,0.00038904,14]
[341374967,1730855443737,-500.0,0.00038904,14]
[341374969,1730855443747,-500.0,0.00038904,14]
[341374971,1730855443756,-500.0,0.00038904,14]
[341374973,1730855443766,-500.0,0.00038904,14]
[341374975,1730855443776,-978.81967925,0.00038904,116]
[341374977,1730855443785,-500.0,0.00038904,14]
[341374979,1730855443794,-564.26219041,0.00038904,14]
[341374981,1730855443803,-500.0,0.00038904,14]
[341374983,1730855443813,-500.0,0.00038904,14]
[341374985,1730855443822,-315.95740311,0.00038904,14]
[341374987,1730855443832,-500.0,0.00038904,14]
[341374989,1730855443844,-500.0,0.00038904,14]
[341374991,1730855443853,-500.0,0.00038904,14]
[341374993,1730855443862,-1517.38,0.00038904,14]
[341374995,1730855443871,-500.0,0.00038904,14]